fUST/lending_fUST_20241225
["ID","MTS","AMOUNT","RATE_DAILY","PERIOD"]
[346571644,1735099853889,-2330.54,0.00014364,2]
[346571645,1735099853898,-500.0,0.00014364,2]
[346571646,1735099853907,-221.28,0.00014364,2]
[346571647,1735099853916,-733.76,0.00014364,2]
[346571648,1735099853926,-1626.03,0.00014364,2]
[346571649,1735099853937,-1020.34,0.00014364,2]
[346571650,1735099853946,-895.71,0.00014364,2]
[346571651,1735099853955,-500.0,0.00014364,2]
[346571652,1735099853965,-3595.32,0.00014364,2]
[346571653,1735099853976,-521.41,0.00014364,2]
[346571654,1735099853985,-1317.96,0.00014364,2]
[346571655,1735099853994,-500.0,0.00014364,2]
[346571656,1735099854003,-500.0,0.00014364,2]
[346571657,1735099854012,-500.0,0.00014364,2]
[346571658,1735099854022,-817.94,0.00014364,2]
[346571659,1735099854031,-509.35,0.00014364,2]
[346571660,1735099854040,-853.08,0.00014364,2]
[346571661,1735099854050,-1860.2,0.00014364,2]
[346571662,1735099854060,-500.0,0.00014364,2]
[346571663,1735099854069,-500.0,0.00014364,2]
[346571664,1735099854078,-151.75643762,0.00014364,2]
[346571665,1735099854087,-1075.95,0.00014364,2]
[346571666,1735099854096,-1081.19,0.00014364,2]
[346571667,1735099854105,-500.0,0.00014364,2]
[346571668,1735099854115,-312.65719359,0.00014364,2]
[346571669,1735099854129,-1179.65,0.00014364,2]
[346571670,1735099854138,-2423.16,0.00014364,2]
[346571671,1735099854148,-1820.17,0.00014364,2]
[346571672,1735099854158,-1429.14,0.00014364,2]
[346571673,1735099854167,-4544.79,0.00014364,2]
[346571674,1735099854176,-521.37,0.00014364,2]
[346571675,1735099854185,-1134.98,0.00014364,2]
[346571676,1735099854195,-1066.97,0.00014364,2]
[346571677,1735099854204,-836.22,0.00014364,2]
[346571678,1735099854214,-545.02,0.00014364,2]
[346571679,1735099854223,-606.29,0.00014364,2]
[346571680,1735099854232,-500.0,0.00014364,2]
[346571681,1735099854241,-500.0,0.00014364,2]
[346571682,1735099854251,-500.0,0.00014364,2]
[346571683,1735099854259,-500.0,0.00014364,2]
[346571684,1735099854269,-500.0,0.00014364,2]
[346571685,1735099854278,-2555.29,0.00014364,2]
[346571686,1735099854288,-1248.76,0.00014364,2]
[346571687,1735099854297,-576.25,0.00014364,2]
[346571688,1735099854307,-1864.09,0.00014364,2]
[346571689,1735099854315,-665.42,0.00014364,4]
[346571690,1735099854324,-1162.82,0.00014364,2]
[346571691,1735099854333,-1041.54,0.00014364,2]
[346571692,1735099854342,-500.0,0.00014364,2]
[346571693,1735099854351,-925.85,0.00014364,2]
[346571694,1735099854360,-3467.6,0.00014364,2]
[346571695,1735099854370,-248.577938,0.00014364,2]
[346571696,1735099854379,-1742.23,0.00014364,2]
[346571697,1735099854388,-2804.75,0.00014364,2]
[346571698,1735099854397,-500.0,0.00014364,2]
[346571699,1735099854406,-501.2,0.00014364,2]
[346571700,1735099854415,-929.73,0.00014364,2]
[346571701,1735099854424,-657.26,0.00014364,2]
[346571702,1735099854433,-500.0,0.00014364,2]
[346571703,1735099854445,-65606.7,0.00014364,2]
[346571704,1735099854456,-613.38,0.00014364,2]
[346571705,1735099854465,-1297.86,0.00014364,2]
[346571706,1735099854474,-16290.35,0.00014364,2]
[346571707,1735099854483,-700.77,0.00014364,2]
[346571708,1735099854492,-507.61,0.00014364,2]
[346571709,1735099854501,-2098.49,0.00014364,2]
[346571710,1735099854511,-944.69,0.00014364,2]
[346571711,1735099854520,-2668.52,0.00014364,2]
[346571712,1735099854529,-500.0,0.00014364,2]
[346571713,1735099854538,-500.0,0.00014364,2]
[346571714,1735099854548,-1739.05,0.00014364,2]
[346571715,1735099854558,-538.11,0.00014364,2]
[346571716,1735099854567,-873.62,0.00014365,2]
[346571717,1735099854576,-500.0,0.00014365,2]
[346571718,1735099854585,-500.0,0.00014365,2]
[346571719,1735099854594,-625.78,0.00014365,2]
[346571720,1735099854603,-621.28,0.00014365,2]
[346571721,1735099854612,-2032.77,0.00014365,2]
[346571722,1735099854622,-598.15,0.00014365,2]
[346571723,1735099854631,-549.16,0.00014365,2]
[346571724,1735099854641,-730.83,0.00014365,2]
[346571725,1735099854650,-500.0,0.00014365,2]
[346571726,1735099854659,-500.0,0.00014365,2]
[346571727,1735099854668,-500.0,0.00014365,2]
[346571728,1735099854677,-987.6,0.00014365,2]
[346571729,1735099854688,-500.0,0.00014365,2]
[346571730,1735099854697,-692.3,0.00014365,2]
[346571731,1735099854706,-240.07717217,0.00014365,2]
[346571732,1735099854815,-689.95,0.00014365,2]
[346571733,1735099854837,-500.0,0.00014365,2]
[346571734,1735099854847,-508.44650873,0.00014365,2]
[346571735,1735099854858,-1268.41,0.00014365,2]
[346571736,1735099854867,-151.0,0.00014365,2]
[346571737,1735099854876,-257.116968,0.00014365,2]
[346571738,1735099854886,-151.0,0.00014365,2]
[346571739,1735099854896,-500.0,0.00014365,2]
[346571740,1735099854905,-2069.67,0.00014365,2]
[346571741,1735099854915,-500.0,0.00014365,2]
[346571742,1735099854924,-503.25,0.00014365,2]
[346571743,1735099854935,-500.0,0.00014365,2]
[346571744,1735099854944,-500.0,0.00014365,2]
[346571745,1735099854954,-1459.39,0.00014365,2]
[346571746,1735099854963,-1956.68,0.00014365,2]
[346571747,1735099854972,-1571.15,0.00014365,2]
[346571748,1735099854981,-1224.52,0.00014365,2]
[346571749,1735099854992,-15357.08,0.00014365,2]
[346571750,1735099855001,-577.22,0.00014365,2]
[346571751,1735099855011,-591.67,0.00014365,2]
[346571752,1735099855020,-571.63,0.00014365,2]
[346571753,1735099855030,-725.86,0.00014365,2]
[346571754,1735099855039,-561.21,0.00014365,2]
[346571755,1735099855048,-639.52,0.00014365,2]
[346571756,1735099855059,-559.34,0.00014366,2]
[346571757,1735099855068,-500.0,0.00014366,2]
[346571758,1735099855078,-500.0,0.00014366,2]
[346571759,1735099855088,-500.0,0.00014366,2]
[346571760,1735099855097,-500.0,0.00014366,2]
[346571761,1735099855106,-500.0,0.00014366,2]
[346571762,1735099855116,-681.39,0.00014366,2]
[346571763,1735099855128,-151.0,0.00014366,2]
[346571764,1735099855137,-657.02,0.00014366,2]
[346571765,1735099855146,-500.0,0.00014366,2]
[346571766,1735099855155,-500.0,0.00014366,2]
[346571767,1735099855166,-534.43,0.00014366,2]
[346571768,1735099855175,-500.0,0.00014366,2]
[346571769,1735099855184,-500.0,0.00014366,2]
[346571770,1735099855197,-945.59,0.00014366,2]
[346571771,1735099855207,-500.0,0.00014366,2]
[346571772,1735099855216,-500.0,0.00014366,2]
[346571773,1735099855225,-806.21,0.00014366,2]
[346571774,1735099855234,-500.0,0.00014366,2]
[346571775,1735099855243,-773.06,0.00014366,2]
[346571776,1735099855253,-417.3165123,0.00014366,2]
[346571777,1735099855262,-500.0,0.00014366,2]
[346571778,1735099855271,-1090.79,0.00014367,2]
[346571779,1735099855280,-670.48,0.00014367,2]
[346571780,1735099855291,-500.0,0.00014367,2]
[346571781,1735099855300,-2070.99,0.00014367,2]
[346571782,1735099855310,-1097.78,0.00014367,2]
[346571783,1735099855319,-500.0,0.00014367,2]
[346571784,1735099855328,-2342.68,0.00014367,2]
[346571785,1735099855337,-834.36,0.00014367,2]
[346571786,1735099855346,-500.0,0.00014367,2]
[346571787,1735099855355,-587.2,0.00014367,2]
[346571788,1735099855364,-708.7,0.00014369,2]
[346571789,1735099855373,-1045.61,0.00014369,2]
[346571790,1735099855382,-500.0,0.00014369,2]
[346571791,1735099855392,-1016.79,0.00014369,2]
[346571792,1735099855401,-500.0,0.00014369,2]
[346571793,1735099855411,-500.0,0.00014369,2]
[346571794,1735099855419,-216.672556,0.00014369,2]
[346571795,1735099855429,-151.0,0.00014369,2]
[346571796,1735099855438,-151.0,0.00014381,2]
[346571797,1735099855446,-930.43,0.0001453,2]
[346571798,1735099855455,-564.07,0.0001453,2]
[346571799,1735099855464,-631.19,0.0001453,2]
[346571800,1735099855473,-710.02,0.0001453,2]
[346571801,1735099855482,-9092.35,0.0001453,2]
[346571802,1735099855492,-909.5,0.00014531,2]
[346571803,1735099855501,-500.0,0.00014531,2]
[346571804,1735099855510,-5113.57,0.00014531,2]
[346571805,1735099855519,-1015.74,0.00014531,2]
[346571806,1735099855529,-1227.92,0.00014531,2]
[346571807,1735099855538,-2295.0,0.00014531,2]
[346571808,1735099855546,-500.0,0.00014555,2]
[346571809,1735099855556,-670.8,0.00014555,2]
[346571810,1735099855565,-1000.0,0.00014584,2]
[346571811,1735099855574,-876.75,0.00014637,2]
[346571812,1735099855583,-846.02,0.00014637,2]
[346571813,1735099855592,-18690.59,0.00014637,2]
[346571814,1735099855601,-500.0,0.00014637,2]
[346571815,1735099855610,-7182.78,0.00014637,2]
[346571816,1735099855620,-534.07,0.00014637,2]
[346571817,1735099855629,-580.94,0.00014637,2]
[346571818,1735099855638,-4544.41,0.00014637,2]
[346571819,1735099855647,-2799.66,0.00014637,2]
[346571820,1735099855656,-1975.89,0.00014637,2]
[346571821,1735099855665,-529.25,0.00014638,2]
[346571822,1735099855675,-500.0,0.00014638,2]
[346571823,1735099855684,-500.0,0.00014638,2]
[346571824,1735099855694,-1102.19,0.00014638,2]
[346571825,1735099855703,-542.95,0.00014638,2]
[346571826,1735099855712,-500.0,0.00014638,2]
[346571827,1735099855721,-685.35,0.00014638,2]
[346571828,1735099855730,-720.82,0.00014638,2]
[346571829,1735099855740,-500.0,0.00014638,2]
[346571830,1735099855749,-1145.02,0.00014638,2]
[346571831,1735099855758,-500.0,0.00014638,2]
[346571832,1735099855767,-500.0,0.00014638,2]
[346571833,1735099855775,-500.0,0.00014638,2]
[346571834,1735099855784,-2330.54,0.00014638,2]
[346571835,1735099855794,-500.0,0.00014638,2]
[346571836,1735099855803,-221.28,0.00014638,2]
[346571837,1735099855812,-733.76,0.00014638,2]
[346571838,1735099855821,-1626.03,0.00014638,2]
[346571839,1735099855830,-1020.34,0.00014638,2]
[346571840,1735099855840,-895.71,0.00014638,2]
[346571841,1735099855849,-500.0,0.00014638,2]
[346571842,1735099855858,-3595.32,0.00014638,2]
[346571843,1735099855866,-521.41,0.00014638,2]
[346571844,1735099855875,-1317.96,0.00014638,2]
[346571845,1735099855884,-500.0,0.00014638,2]
[346571846,1735099855893,-500.0,0.00014638,2]
[346571847,1735099855902,-500.0,0.00014638,2]
[346571848,1735099855913,-817.94,0.00014638,2]
[346571849,1735099855922,-509.35,0.00014638,2]
[346571850,1735099855931,-853.08,0.00014638,2]
[346571851,1735099855941,-1860.2,0.00014638,2]
[346571852,1735099855950,-500.0,0.00014638,2]
[346571853,1735099855959,-500.0,0.00014638,2]
[346571854,1735099855968,-1075.95,0.00014638,2]
[346571855,1735099855978,-1081.19,0.00014638,2]
[346571856,1735099855987,-500.0,0.00014638,2]
[346571857,1735099855996,-1179.65,0.00014638,2]
[346571858,1735099856006,-2423.16,0.00014638,2]
[346571859,1735099856015,-1820.17,0.00014638,2]
[346571860,1735099856024,-1429.14,0.00014638,2]
[346571861,1735099856032,-4544.79,0.00014638,2]
[346571862,1735099856042,-521.37,0.00014638,2]
[346571863,1735099856051,-1134.98,0.00014638,2]
[346571864,1735099856060,-1066.97,0.00014638,2]
[346571865,1735099856069,-836.22,0.00014638,2]
[346571866,1735099856078,-545.02,0.00014638,2]
[346571867,1735099856087,-606.29,0.00014638,2]
[346571868,1735099856096,-500.0,0.00014638,2]
[346571869,1735099856105,-500.0,0.00014638,2]
[346571870,1735099856115,-500.0,0.00014638,2]
[346571871,1735099856128,-500.0,0.00014638,2]
[346571872,1735099856137,-500.0,0.00014638,2]
[346571873,1735099856146,-1000.0,0.00014638,2]
[346571874,1735099856155,-2555.29,0.00014638,2]
[346571875,1735099856166,-1248.76,0.00014638,2]
[346571876,1735099856175,-576.25,0.00014638,2]
[346571877,1735099856185,-1864.09,0.00014638,2]
[346571878,1735099856196,-665.42,0.00014638,4]
[346571879,1735099856205,-1162.82,0.00014638,2]
[346571880,1735099856214,-1041.54,0.00014638,2]
[346571881,1735099856224,-500.0,0.00014638,2]
[346571882,1735099856232,-925.85,0.00014638,2]
[346571883,1735099856242,-3467.6,0.00014638,2]
[346571884,1735099856251,-1742.23,0.00014638,2]
[346571885,1735099856261,-2804.75,0.00014638,2]
[346571886,1735099856271,-500.0,0.00014638,2]
[346571887,1735099856280,-501.2,0.00014638,2]
[346571888,1735099856290,-929.73,0.00014638,2]
[346571889,1735099856300,-657.26,0.00014638,2]
[346571890,1735099856310,-500.0,0.00014638,2]
[346571891,1735099856320,-65606.7,0.00014638,2]
[346571892,1735099856330,-613.38,0.00014638,2]
[346571893,1735099856339,-1297.86,0.00014638,2]
[346571894,1735099856350,-16290.35,0.00014638,2]
[346571895,1735099856359,-700.77,0.00014638,2]
[346571896,1735099856368,-507.61,0.00014638,2]
[346571897,1735099856377,-2098.49,0.00014638,2]
[346571898,1735099856386,-944.69,0.00014638,2]
[346571899,1735099856396,-2668.52,0.00014638,2]
[346571900,1735099856405,-500.0,0.00014638,2]
[346571901,1735099856414,-500.0,0.00014638,2]
[346571902,1735099856423,-1739.05,0.00014638,2]
[346571903,1735099856433,-538.11,0.00014638,2]
[346571904,1735099856442,-873.62,0.00014639,2]
[346571905,1735099856452,-241.55418724,0.00014639,2]
[346571906,1735099856461,-500.0,0.00014639,2]
[346571907,1735099856470,-621.28,0.00014639,2]
[346571908,1735099856479,-625.78,0.00014639,2]
[346571909,1735099856489,-2032.77,0.00014639,2]
[346571910,1735099856498,-598.15,0.00014639,2]
[346571911,1735099856508,-549.16,0.00014639,2]
[346571912,1735099856517,-730.83,0.00014639,2]
[346571913,1735099856526,-500.0,0.00014639,2]
[346571914,1735099856535,-522.15969729,0.00014639,2]
[346571915,1735099856544,-500.0,0.00014639,2]
[346571916,1735099856553,-987.6,0.00014639,2]
[346571917,1735099856563,-500.0,0.00014639,2]
[346571918,1735099856572,-692.3,0.00014639,2]
[346571919,1735099856581,-689.95,0.00014639,2]
[346571920,1735099856590,-500.0,0.00014639,2]
[346571921,1735099856599,-1268.41,0.00014639,2]
[346571922,1735099856608,-500.0,0.00014639,2]
[346571923,1735099856617,-2069.67,0.00014639,2]
[346571924,1735099856626,-500.0,0.00014639,2]
[346571925,1735099856635,-503.25,0.00014639,2]
[346571926,1735099856646,-500.0,0.00014639,2]
[346571927,1735099856655,-599.02974392,0.00014639,2]
[346571928,1735099856664,-1459.39,0.00014639,2]
[346571929,1735099856673,-1956.68,0.00014639,2]
[346571930,1735099856682,-1571.15,0.00014639,2]
[346571931,1735099856692,-1224.52,0.00014639,2]
[346571932,1735099856701,-15357.08,0.00014639,2]
[346571933,1735099856710,-577.22,0.00014639,2]
[346571934,1735099856720,-591.67,0.00014639,2]
[346571935,1735099856730,-571.63,0.00014639,2]
[346571936,1735099856739,-725.86,0.00014639,2]
[346571937,1735099856748,-561.21,0.00014639,2]
[346571938,1735099856757,-639.52,0.00014639,2]
[346571939,1735099856766,-559.34,0.0001464,2]
[346571940,1735099856775,-504.64648404,0.0001464,2]
[346571941,1735099856784,-500.0,0.0001464,2]
[346571942,1735099856793,-500.0,0.0001464,2]
[346571943,1735099856802,-500.0,0.0001464,2]
[346571944,1735099856811,-472.7103995,0.0001464,2]
[346571945,1735099856820,-681.39,0.0001464,2]
[346571946,1735099856830,-657.02,0.0001464,2]
[346571947,1735099856839,-500.0,0.0001464,2]
[346571948,1735099856848,-238.28896166,0.0001464,2]
[346571949,1735099856857,-534.43,0.0001464,2]
[346571950,1735099856866,-500.0,0.0001464,2]
[346571951,1735099856875,-500.0,0.0001464,2]
[346571952,1735099856885,-945.59,0.0001464,2]
[346571953,1735099856894,-500.0,0.0001464,2]
[346571954,1735099856904,-500.0,0.0001464,2]
[346571955,1735099857012,-806.21,0.0001464,2]
[346571956,1735099857022,-569.85224184,0.0001464,2]
[346571957,1735099857031,-185.169384,0.0001464,2]
[346571958,1735099857041,-773.06,0.0001464,2]
[346571959,1735099857051,-500.0,0.0001464,2]
[346571960,1735099857062,-151.0,0.00014641,2]
[346571961,1735099857071,-1090.79,0.00014641,2]
[346571962,1735099857080,-670.48,0.00014641,2]
[346571963,1735099857091,-500.0,0.00014641,2]
[346571964,1735099857100,-2070.99,0.00014641,2]
[346571965,1735099857109,-1097.78,0.00014641,2]
[346571966,1735099857121,-500.0,0.00014641,2]
[346571967,1735099857130,-2342.68,0.00014641,2]
[346571968,1735099857139,-834.36,0.00014641,2]
[346571969,1735099857148,-500.0,0.00014641,2]
[346571970,1735099857159,-587.2,0.00014641,2]
[346571971,1735099857168,-163.86591784,0.00014642,2]
[346571972,1735099857177,-708.7,0.00014643,2]
[346571973,1735099857187,-1045.61,0.00014643,2]
[346571974,1735099857199,-150.22620272,0.00014643,2]
[346571975,1735099857210,-500.0,0.00014643,2]
[346571976,1735099857219,-1016.79,0.00014643,2]
[346571977,1735099857229,-150.06,0.00014643,2]
[346571978,1735099857239,-150.06,0.00014643,2]
[346571979,1735099857248,-150.06,0.00014643,2]
[346571980,1735099857258,-199.26180557,0.00014643,2]
[346571981,1735099857268,-150.63967868,0.00014643,2]
[346571982,1735099857278,-500.0,0.00014643,2]
[346571983,1735099857287,-500.0,0.00014643,2]
[346571984,1735099857298,-150.06,0.00014643,2]
[346571985,1735099857307,-150.06,0.00014643,2]
[346571986,1735099857317,-251.67317389,0.00014643,2]
[346571987,1735099857327,-293.6192976,0.00014643,2]
[346571988,1735099857337,-150.06,0.00014643,2]
[346571989,1735099857346,-150.06,0.00014643,2]
[346571990,1735099857356,-500.0,0.00014643,2]
[346571991,1735099857365,-500.0,0.00014643,2]
[346571992,1735099857375,-150.06,0.00014643,2]
[346571993,1735099857384,-150.54747209,0.00014643,2]
[346571994,1735099857394,-150.06,0.00014643,2]
[346571995,1735099857403,-150.06,0.00014643,2]
[346571996,1735099857413,-2824.64022792,0.00014751,2]
[346571997,1735099857421,-325.45458407,0.000148,2]
[346571998,1735099857431,-930.43,0.00014804,2]
[346571999,1735099857441,-564.07,0.00014804,2]
[346572000,1735099857450,-631.19,0.00014804,2]
[346572001,1735099857459,-710.02,0.00014804,2]
[346572002,1735099857468,-9092.35,0.00014804,2]
[346572003,1735099857478,-909.5,0.00014805,2]
[346572004,1735099857487,-500.0,0.00014805,2]
[346572005,1735099857500,-5113.57,0.00014805,2]
[346572006,1735099857509,-1015.74,0.00014805,2]
[346572007,1735099857518,-1227.92,0.00014805,2]
[346572008,1735099857527,-2295.0,0.00014805,2]
[346572009,1735099857536,-1317.29235454,0.00014822,2]
[346572010,1735099857545,-1500.0,0.00014822,2]
[346572011,1735099857554,-1500.0,0.00014822,2]
[346572012,1735099857563,-500.0,0.00014829,2]
[346572013,1735099857572,-670.8,0.00014829,2]
[346572014,1735099857582,-827014.71633692,0.0001484,10]
[346572015,1735099857591,-151.0,0.0001484,2]
[346572016,1735099857600,-48724.826938,0.00014889,2]
[346572017,1735099857609,-564.94132984,0.000149,2]
[346572018,1735099857619,-2062.02,0.000149,2]
[346572019,1735099857629,-876.75,0.00014911,2]
[346572020,1735099857638,-846.02,0.00014911,2]
[346572021,1735099857647,-18690.59,0.00014911,2]
[346572022,1735099857657,-500.0,0.00014911,2]
[346572023,1735099857667,-7182.78,0.00014911,2]
[346572024,1735099857676,-534.07,0.00014911,2]
[346572025,1735099857685,-580.94,0.00014911,2]
[346572026,1735099857695,-4544.41,0.00014911,2]
[346572027,1735099857704,-2799.66,0.00014911,2]
[346572028,1735099857713,-1975.89,0.00014911,2]
[346572029,1735099857723,-529.25,0.00014912,2]
[346572030,1735099857732,-500.0,0.00014912,2]
[346572031,1735099857741,-500.0,0.00014912,2]
[346572032,1735099857750,-1102.19,0.00014912,2]
[346572033,1735099857759,-542.95,0.00014912,2]
[346572034,1735099857768,-500.0,0.00014912,2]
[346572035,1735099857777,-685.35,0.00014912,2]
[346572036,1735099857787,-720.82,0.00014912,2]
[346572037,1735099857796,-500.0,0.00014912,2]
[346572038,1735099857805,-1145.02,0.00014912,2]
[346572039,1735099857814,-500.0,0.00014912,2]
[346572040,1735099857823,-500.0,0.00014912,2]
[346572041,1735099857832,-500.0,0.00014912,2]
[346572042,1735099857842,-2330.54,0.00014912,2]
[346572043,1735099857851,-500.0,0.00014912,2]
[346572044,1735099857860,-221.28,0.00014912,2]
[346572045,1735099857869,-733.76,0.00014912,2]
[346572046,1735099857879,-1626.03,0.00014912,2]
[346572047,1735099857888,-1020.34,0.00014912,2]
[346572048,1735099857898,-895.71,0.00014912,2]
[346572049,1735099857907,-500.0,0.00014912,2]
[346572050,1735099857916,-3595.32,0.00014912,2]
[346572051,1735099857926,-521.41,0.00014912,2]
[346572052,1735099857935,-1317.96,0.00014912,2]
[346572053,1735099857945,-500.0,0.00014912,2]
[346572054,1735099857954,-500.0,0.00014912,2]
[346572055,1735099857963,-500.0,0.00014912,2]
[346572056,1735099857972,-817.94,0.00014912,2]
[346572057,1735099857982,-509.35,0.00014912,2]
[346572058,1735099857991,-853.08,0.00014912,2]
[346572059,1735099858000,-1860.2,0.00014912,2]
[346572060,1735099858010,-500.0,0.00014912,2]
[346572061,1735099858019,-500.0,0.00014912,2]
[346572062,1735099858028,-1075.95,0.00014912,2]
[346572063,1735099858038,-500.0,0.00014912,2]
[346572064,1735099858047,-2423.16,0.00014912,2]
[346572065,1735099858057,-1179.65,0.00014912,2]
[346572066,1735099858066,-1820.17,0.00014912,2]
[346572067,1735099858076,-1429.14,0.00014912,2]
[346572068,1735099858085,-4544.79,0.00014912,2]
[346572069,1735099858094,-521.37,0.00014912,2]
[346572070,1735099858103,-1134.98,0.00014912,2]
[346572071,1735099858113,-1066.97,0.00014912,2]
[346572072,1735099858125,-836.22,0.00014912,2]
[346572073,1735099858135,-545.02,0.00014912,2]
[346572074,1735099858144,-606.29,0.00014912,2]
[346572075,1735099858154,-500.0,0.00014912,2]
[346572076,1735099858165,-299.02135297,0.00014912,2]
[346572077,1735099858174,-500.0,0.00014912,2]
[346572078,1735099858183,-215.21787998,0.00014912,2]
[346572079,1735099858192,-500.0,0.00014912,2]
[346572080,1735099858201,-2555.29,0.00014912,2]
[346572081,1735099858211,-1248.76,0.00014912,2]
[346572082,1735099858220,-576.25,0.00014912,2]
[346572083,1735099858230,-1864.09,0.00014912,2]
[346572084,1735099858239,-665.42,0.00014912,4]
[346572085,1735099858249,-1162.82,0.00014912,2]
[346572086,1735099858258,-1041.54,0.00014912,2]
[346572087,1735099858267,-194.67016423,0.00014912,2]
[346572088,1735099858276,-925.85,0.00014912,2]
[346572089,1735099858286,-3467.6,0.00014912,2]
[346572090,1735099858295,-2804.75,0.00014912,2]
[346572091,1735099858305,-1742.23,0.00014912,2]
[346572092,1735099858314,-500.0,0.00014912,2]
[346572093,1735099858323,-501.2,0.00014912,2]
[346572094,1735099858333,-929.73,0.00014912,2]
[346572095,1735099858342,-657.26,0.00014912,2]
[346572096,1735099858352,-500.0,0.00014912,2]
[346572097,1735099858361,-65606.7,0.00014912,2]
[346572098,1735099858371,-613.38,0.00014912,2]
[346572099,1735099858380,-1297.86,0.00014912,2]
[346572100,1735099858389,-16290.35,0.00014912,2]
[346572101,1735099858399,-700.77,0.00014912,2]
[346572102,1735099858408,-507.61,0.00014912,2]
[346572103,1735099858417,-2098.49,0.00014912,2]
[346572104,1735099858426,-944.69,0.00014912,2]
[346572105,1735099858435,-2668.52,0.00014912,2]
[346572106,1735099858446,-500.0,0.00014912,2]
[346572107,1735099858455,-500.0,0.00014912,2]
[346572108,1735099858465,-1739.05,0.00014912,2]
[346572109,1735099858474,-538.11,0.00014912,2]
[346572110,1735099858483,-873.62,0.00014913,2]
[346572111,1735099858492,-500.0,0.00014913,2]
[346572112,1735099858503,-621.28,0.00014913,2]
[346572113,1735099858512,-625.78,0.00014913,2]
[346572114,1735099858522,-2032.77,0.00014913,2]
[346572115,1735099858531,-598.15,0.00014913,2]
[346572116,1735099858540,-549.16,0.00014913,2]
[346572117,1735099858550,-730.83,0.00014913,2]
[346572118,1735099858560,-568.69899948,0.00014913,2]
[346572119,1735099858571,-500.0,0.00014913,2]
[346572120,1735099858579,-987.6,0.00014913,2]
[346572121,1735099858589,-500.0,0.00014913,2]
[346572122,1735099858598,-692.3,0.00014913,2]
[346572123,1735099858607,-689.95,0.00014913,2]
[346572124,1735099858616,-500.0,0.00014913,2]
[346572125,1735099858626,-1268.41,0.00014913,2]
[346572126,1735099858635,-500.0,0.00014913,2]
[346572127,1735099858644,-2069.67,0.00014913,2]
[346572128,1735099858654,-500.0,0.00014913,2]
[346572129,1735099858663,-503.25,0.00014913,2]
[346572130,1735099858672,-579.28694563,0.00014913,2]
[346572131,1735099858681,-1459.39,0.00014913,2]
[346572132,1735099858691,-1956.68,0.00014913,2]
[346572133,1735099858700,-1571.15,0.00014913,2]
[346572134,1735099858710,-1224.52,0.00014913,2]
[346572135,1735099858719,-15357.08,0.00014913,2]
[346572136,1735099858729,-577.22,0.00014913,2]
[346572137,1735099858738,-591.67,0.00014913,2]
[346572138,1735099858747,-571.63,0.00014913,2]
[346572139,1735099858758,-725.86,0.00014913,2]
[346572140,1735099858767,-561.21,0.00014913,2]
[346572141,1735099858776,-639.52,0.00014913,2]
[346572142,1735099858785,-559.34,0.00014914,2]
[346572143,1735099858794,-500.0,0.00014914,2]